[Event "XVI Memorial Lezcano Montalvo 2024"]
[Site "Gran Canaria"]
[Date "2024.03.24"]
[Round "2.16"]
[White "Loiacono, Leonardo"]
[Black "Martin Ramos, Daniel"]
[Result "0-1"]
[ECO "C55"]
[WhiteElo "2316"]
[BlackElo "1961"]
[Annotator "RC"]
[PlyCount "74"]
[EventDate "2024.03.23"]
[EventType "swiss"]
[EventCountry "ESP"]
[SourceTitle "playchess.com"]
[Source "ChessBase"]
[SourceQuality "1"]
[TimeControl "5400+30"]

1. e4 {[%emt 0:00:02]} e5 {[%emt 0:00:07]} 2. Nf3 {[%emt 0:00:05]} Nc6 {[%emt 0:00:04]} 3. Bc4 {[%emt 0:00:05]} Nf6 {[%emt 0:00:05]} 4. d3 {[%emt 0:00:04]} h6 {[%emt 0:00:17]} 5. c3 {[%emt 0:01:57]} d6 {[%emt 0:00:10]} 6. Nbd2 {[%emt 0:01:55]} g5 {[%emt 0:00:12]} 7. b4 {[%emt 0:16:56]} g4 {[%emt 0:04:44]} 8. Ng1 {[%emt 0:00:43]} h5 {[%emt 0:05:11]} 9. Qb3 {[%emt 0:03:10]} Qe7 {[%emt 0:01:15]} 10. Ba3 {[%emt 0:03:52]} Bh6 {[%emt 0:03:48]} 11. O-O-O {[%emt 0:02:20]} a6 {[%emt 0:26:48]} 12. Ne2 {[%emt 0:03:05]} b5 {[%emt 0:06:16]} 13. Bd5 {[%emt 0:00:05]} Nxd5 {[%emt 0:00:09]} 14. exd5 {[%emt 0:00:31]} Nd8 {[%emt 0:00:43]} 15. Kc2 {[%emt 0:04:10]} c6 {[%emt 0:02:29]} 16. Rhe1 {[%emt 0:15:49]} cxd5 {[%emt 0:02:50]} 17. Qxd5 {[%emt 0:00:25]} Bb7 {[%emt 0:15:59]} 18. Qb3 {[%emt 0:00:25]} Bxg2 {[%emt 0:09:42]} 19. Nd4 {[%emt 0:04:11]} Qf6 {[%emt 0:07:53]} 20. Ne4 {[%emt 0:03:58]} Bxe4 {[%emt 0:00:17]} 21. Rxe4 {[%emt 0:00:02]} O-O {[%emt 0:00:23]} 22. Ne2 {[%emt 0:03:04]} Qe6 {[%emt 0:02:23]} 23. Ng3 {[%emt 0:10:27]} f5 {[%emt 0:00:05]} 24. Ree1 {[%emt 0:00:34]} h4 {[%emt 0:00:04]} 25. Nf1 {[%emt 0:00:31]} Qxb3+ {[%emt 0:01:40]} 26. Kxb3 {[%emt 0:25:04]} Nc6 {[%emt 0:01:25]} 27. Ne3 {[%emt 0:00:00]} Bxe3 {[%emt 0:01:41]} 28. Rxe3 {[%emt 0:00:00]} d5 {[%emt 0:03:40]} 29. Bb2 {[%emt 0:00:00]} Rad8 {[%emt 0:00:53]} 30. Rde1 {[%emt 0:00:00]} e4 {[%emt 0:01:31]} 31. Rg1 {[%emt 0:00:00]} Ne5 {[%emt 0:00:22]} 32. h3 {[%emt 0:00:00]} Nxd3 {[%emt 0:01:46]} 33. hxg4 {[%emt 0:00:00]} f4 {[%emt 0:00:01]} 34. Rxd3 {[%emt 0:00:00]} exd3 {[%emt 0:00:05]} 35. Rd1 {[%emt 0:00:00]} Kf7 {[%emt 0:01:03]} 36. Rxd3 {[%emt 0:00:00]} Kg6 {[%emt 0:00:03]} 37. Bc1 {[%emt 0:00:00]} Kg5 {[%emt 0:00:04]} 0-1

[Event "XVI Memorial Lezcano Montalvo 2024"]
[Site "Gran Canaria"]
[Date "2024.03.24"]
[Round "2.17"]
[White "Camino Carrio, Nicanor"]
[Black "Oudeh Mishmesh, Omar"]
[Result "0-1"]
[ECO "C02"]
[WhiteElo "1962"]
[BlackElo "2301"]
[Annotator "RC"]
[PlyCount "70"]
[EventDate "2024.03.23"]
[EventType "swiss"]
[EventCountry "ESP"]
[SourceTitle "playchess.com"]
[Source "ChessBase"]
[SourceQuality "1"]
[TimeControl "5400+30"]

1. e4 {[%emt 0:00:07]} e6 {[%emt 0:00:26]} 2. d4 {[%emt 0:00:22]} d5 {[%emt 0:00:03]} 3. e5 {[%emt 0:00:53]} c5 {[%emt 0:00:04]} 4. c3 {[%emt 0:00:07]} Nc6 {[%emt 0:00:06]} 5. Nf3 {[%emt 0:00:11]} Bd7 {[%emt 0:00:12]} 6. a3 {[%emt 0:02:08]} c4 {[%emt 0:00:52]} 7. Nbd2 {[%emt 0:01:01]} Na5 {[%emt 0:01:44]} 8. Be2 {[%emt 0:02:11]} Ne7 {[%emt 0:01:36]} 9. h4 {[%emt 0:03:18]} Nc8 {[%emt 0:01:13]} 10. g3 {[%emt 0:05:05]} Nb6 {[%emt 0:01:50]} 11. O-O {[%emt 0:00:31]} Qc7 {[%emt 0:05:43]} 12. Qe1 {[%emt 0:05:42]} Ba4 {[%emt 0:07:26]} 13. Bd1 {[%emt 0:00:47]} O-O-O {[%emt 0:06:53]} 14. Rb1 {[%emt 0:04:17]} h6 {[%emt 0:05:10]} 15. Qe3 {[%emt 0:10:32]} Be7 {[%emt 0:09:12]} 16. b3 {[%emt 0:02:35]} cxb3 {[%emt 0:01:04]} 17. Bxb3 {[%emt 0:02:10]} Nxb3 {[%emt 0:04:49]} 18. Nxb3 {[%emt 0:00:07]} Nc4 {[%emt 0:07:48]} 19. Qe2 {[%emt 0:09:07]} Kb8 {[%emt 0:02:51]} 20. Qa2 {[%emt 0:05:03]} Rc8 {[%emt 0:02:18]} 21. Ne1 {[%emt 0:08:27]} Nb6 {[%emt 0:07:01]} 22. Bd2 {[%emt 0:03:51]} Qc4 {[%emt 0:05:37]} 23. Nc2 {[%emt 0:01:15]} Qe2 {[%emt 0:06:38]} 24. Ne3 {[%emt 0:06:41]} g5 {[%emt 0:03:20]} 25. f3 {[%emt 0:08:36]} gxh4 {[%emt 0:00:54]} 26. Nc1 {[%emt 0:04:03]} Qa6 {[%emt 0:00:09]} 27. g4 {[%emt 0:03:58]} h5 {[%emt 0:00:37]} 28. Rf2 {[%emt 0:00:25]} Rhg8 {[%emt 0:00:47]} 29. Kh2 {[%emt 0:02:41]} Bg5 {[%emt 0:03:35]} 30. Nb3 {[%emt 0:00:21]} Bxb3 {[%emt 0:01:59]} 31. Rxb3 {[%emt 0:00:31]} Bf4+ {[%emt 0:03:51]} 32. Kh3 {[%emt 0:02:05]} Bg3 {[%emt 0:00:26]} 33. Rg2 {[%emt 0:00:33]} hxg4+ {[%emt 0:03:18]} 34. Nxg4 {[%emt 0:02:25]} Qf1 {[%emt 0:00:15]} 35. Qb1 {[%emt 0:00:46]} Qxf3 {[%emt 0:00:11]} 0-1

[Event "XVI Memorial Lezcano Montalvo 2024"]
[Site "Gran Canaria"]
[Date "2024.03.24"]
[Round "2.18"]
[White "Van Zyl-Rudd, Jack"]
[Black "Arnaiz Yanes, Miguel Angel"]
[Result "0-1"]
[ECO "C63"]
[WhiteElo "2264"]
[BlackElo "1947"]
[Annotator "RC"]
[PlyCount "103"]
[EventDate "2024.03.23"]
[EventType "swiss"]
[EventCountry "ESP"]
[SourceTitle "playchess.com"]
[Source "ChessBase"]
[SourceQuality "1"]
[TimeControl "5400+30"]

1. e4 {[%emt 0:02:08]} e5 {[%emt 0:00:16]} 2. Nf3 {[%emt 0:02:10]} Nc6 {[%emt 0:00:03]} 3. Bb5 {[%emt 0:00:06]} f5 {[%emt 0:02:03]} 4. Nc3 {[%emt 0:01:43]} fxe4 {[%emt 0:00:36]} 5. Nxe4 {[%emt 0:00:03]} d5 {[%emt 0:01:01]} 6. Nxe5 {[%emt 0:00:44]} dxe4 {[%emt 0:00:26]} 7. Nxc6 {[%emt 0:00:06]} Qg5 {[%emt 0:00:38]} 8. Qe2 {[%emt 0:02:50]} Nf6 {[%emt 0:00:11]} 9. Nxa7+ {[%emt 0:00:23]} Bd7 {[%emt 0:04:24]} 10. Bxd7+ {[%emt 0:00:05]} Nxd7 {[%emt 0:03:35]} 11. f4 {[%emt 0:00:38]} Qc5 {[%emt 0:05:46]} 12. Nb5 {[%emt 0:00:10]} O-O-O {[%emt 0:01:40]} 13. Nc3 {[%emt 0:00:22]} Nf6 {[%emt 0:02:46]} 14. Qb5 {[%emt 0:19:01]} Qd4 {[%emt 0:08:29]} 15. Qe5 {[%emt 0:18:04]} Qb6 {[%emt 0:08:14]} 16. a4 {[%emt 0:01:07]} Bd6 {[%emt 0:08:18]} 17. Qf5+ {[%emt 0:05:33]} Kb8 {[%emt 0:00:14]} 18. a5 {[%emt 0:00:03]} Qa6 {[%emt 0:02:25]} 19. Rf1 {[%emt 0:01:44]} Bb4 {[%emt 0:02:29]} 20. Nd1 {[%emt 0:26:53]} Bxd2+ {[%emt 0:02:34]} 21. Bxd2 {[%emt 0:00:13]} Rxd2 {[%emt 0:00:09]} 22. Rf2 {[%emt 0:00:10]} Rd5 {[%emt 0:02:05]} 23. Qh3 {[%emt 0:00:31]} Rxa5 {[%emt 0:02:17]} 24. Rxa5 {[%emt 0:02:54]} Qxa5+ {[%emt 0:00:10]} 25. Qc3 {[%emt 0:00:02]} Qh5 {[%emt 0:02:59]} 26. h3 {[%emt 0:05:33]} e3 {[%emt 0:06:06]} 27. Rf3 {[%emt 0:00:50]} Re8 {[%emt 0:05:47]} 28. Rxe3 {[%emt 0:01:35]} Qh4+ {[%emt 0:00:25]} 29. Nf2 {[%emt 0:01:36]} Qxf4 {[%emt 0:04:39]} 30. Rxe8+ {[%emt 0:00:20]} Nxe8 {[%emt 0:00:11]} 31. Nd3 {[%emt 0:07:37]} Qe3+ {[%emt 0:01:04]} 32. Kf1 {[%emt 0:00:02]} Nf6 {[%emt 0:00:50]} 33. Qe1 {[%emt 0:00:32]} Qd4 {[%emt 0:02:05]} 34. Qf2 {[%emt 0:00:22]} Qd6 {[%emt 0:01:34]} 35. Kg1 {[%emt 0:00:11]} h6 {[%emt 0:01:53]} 36. Qe3 {[%emt 0:01:09]} Qc6 {[%emt 0:02:38]} 37. c3 {[%emt 0:00:05]} Qd6 {[%emt 0:00:45]} 38. Nf2 {[%emt 0:00:58]} Qd7 {[%emt 0:00:36]} 39. c4 {[%emt 0:00:30]} Qd6 {[%emt 0:02:20]} 40. b3 {[%emt 0:00:09]} b6 {[%emt 0:00:46]} 41. Nd3 {[%emt 0:01:00]} Nd7 {[%emt 0:01:08]} 42. b4 {[%emt 0:00:31]} c5 {[%emt 0:01:11]} 43. bxc5 {[%emt 0:00:40]} bxc5 {[%emt 0:00:24]} 44. Qe4 {[%emt 0:00:24]} Kc7 {[%emt 0:00:43]} 45. Nf4 {[%emt 0:00:08]} Nf6 {[%emt 0:02:45]} 46. Qf5 {[%emt 0:01:01]} Qd4+ {[%emt 0:00:34]} 47. Kh2 {[%emt 0:00:01]} Qxc4 {[%emt 0:00:31]} 48. Ne6+ {[%emt 0:00:02]} Kb6 {[%emt 0:00:30]} 49. Nxg7 {[%emt 0:00:10]} Nd5 {[%emt 0:00:41]} 50. Ne6 {[%emt 0:00:49]} Ne3 {[%emt 0:01:30]} 51. Qe5 {[%emt 0:00:21]} Qc1 {[%emt 0:00:51]} 52. Qb8+ {[%emt 0:00:58]} 0-1

[Event "XVI Memorial Lezcano Montalvo 2024"]
[Site "Gran Canaria"]
[Date "2024.03.24"]
[Round "2.19"]
[White "Guerrero Orihuela, Jose Luis"]
[Black "Fiorito, Fabian"]
[Result "0-1"]
[ECO "E90"]
[WhiteElo "1948"]
[BlackElo "2251"]
[Annotator "RC"]
[PlyCount "74"]
[EventDate "2024.03.23"]
[EventType "swiss"]
[EventCountry "ESP"]
[SourceTitle "playchess.com"]
[Source "ChessBase"]
[SourceQuality "1"]
[TimeControl "5400+30"]

1. d4 {[%emt 0:00:04]} Nf6 {[%emt 0:04:32]} 2. c4 {[%emt 0:00:07]} g6 {[%emt 0:00:04]} 3. Nc3 {[%emt 0:00:04]} Bg7 {[%emt 0:00:22]} 4. e4 {[%emt 0:00:05]} d6 {[%emt 0:00:01]} 5. h3 {[%emt 0:00:05]} c5 {[%emt 0:01:04]} 6. Nf3 {[%emt 0:00:23]} O-O {[%emt 0:01:03]} 7. d5 {[%emt 0:06:10]} e6 {[%emt 0:01:35]} 8. Be2 {[%emt 0:01:52]} a6 {[%emt 0:04:40]} 9. O-O {[%emt 0:01:05]} e5 {[%emt 0:00:20]} 10. Bg5 {[%emt 0:10:28]} h6 {[%emt 0:00:17]} 11. Be3 {[%emt 0:00:10]} Kh7 {[%emt 0:01:42]} 12. Qc2 {[%emt 0:05:59]} Ng8 {[%emt 0:03:16]} 13. Nd2 {[%emt 0:06:00]} Nd7 {[%emt 0:03:03]} 14. Bg4 {[%emt 0:07:43]} Ngf6 {[%emt 0:03:31]} 15. Be2 {[%emt 0:02:22]} Qe7 {[%emt 0:00:27]} 16. g4 {[%emt 0:04:40]} Ng8 {[%emt 0:02:10]} 17. Bd3 {[%emt 0:02:08]} Kh8 {[%emt 0:00:31]} 18. Kg2 {[%emt 0:05:53]} Ndf6 {[%emt 0:03:22]} 19. f3 {[%emt 0:01:28]} Nh7 {[%emt 0:01:13]} 20. a3 {[%emt 0:05:30]} Bf6 {[%emt 0:00:49]} 21. b4 {[%emt 0:01:55]} b6 {[%emt 0:00:18]} 22. Rab1 {[%emt 0:00:14]} Bg5 {[%emt 0:00:50]} 23. Bf2 {[%emt 0:04:29]} Qd8 {[%emt 0:01:48]} 24. Rh1 {[%emt 0:08:41]} f5 {[%emt 0:03:09]} 25. exf5 {[%emt 0:06:39]} gxf5 {[%emt 0:00:09]} 26. Rbf1 {[%emt 0:00:04]} Ne7 {[%emt 0:02:37]} 27. Bg3 {[%emt 0:02:21]} Ng6 {[%emt 0:01:37]} 28. Ne2 {[%emt 0:01:04]} Bd7 {[%emt 0:04:11]} 29. f4 {[%emt 0:00:42]} exf4 {[%emt 0:01:09]} 30. Nxf4 {[%emt 0:00:05]} Nxf4+ {[%emt 0:03:02]} 31. Bxf4 {[%emt 0:00:04]} fxg4 {[%emt 0:01:19]} 32. Bxd6 {[%emt 0:02:24]} gxh3+ {[%emt 0:01:03]} 33. Kh2 {[%emt 0:00:11]} Nf6 {[%emt 0:04:23]} 34. Rhg1 {[%emt 0:00:26]} Ba4 {[%emt 0:00:51]} 35. Rxf6 {[%emt 0:03:34]} Rxf6 {[%emt 0:00:59]} 36. Qc3 {[%emt 0:02:02]} Qxd6+ {[%emt 0:00:05]} 37. Kxh3 {[%emt 0:00:08]} Bd7+ {[%emt 0:00:34]} 0-1

[Event "XVI Memorial Lezcano Montalvo 2024"]
[Site "Gran Canaria"]
[Date "2024.03.24"]
[Round "2.20"]
[White "Perez Guerra, Raul"]
[Black "Ramirez Maillo, Juan Adonay"]
[Result "1-0"]
[ECO "B23"]
[WhiteElo "2250"]
[BlackElo "1918"]
[Annotator "RC"]
[PlyCount "73"]
[EventDate "2024.03.23"]
[EventType "swiss"]
[EventCountry "ESP"]
[SourceTitle "playchess.com"]
[Source "ChessBase"]
[SourceQuality "1"]
[TimeControl "5400+30"]

1. e4 {[%emt 0:00:19]} c5 {[%emt 0:00:06]} 2. Nc3 {[%emt 0:00:13]} a6 {[%emt 0:00:19]} 3. Nge2 {[%emt 0:00:10]} b5 {[%emt 0:00:22]} 4. g3 {[%emt 0:00:04]} Bb7 {[%emt 0:00:13]} 5. Bg2 {[%emt 0:00:04]} e6 {[%emt 0:00:38]} 6. O-O {[%emt 0:00:05]} b4 {[%emt 0:02:48]} 7. Na4 {[%emt 0:01:02]} Qc7 {[%emt 0:00:25]} 8. d4 {[%emt 0:03:35]} cxd4 {[%emt 0:01:12]} 9. Nxd4 {[%emt 0:00:06]} Nf6 {[%emt 0:02:00]} 10. Re1 {[%emt 0:01:38]} Nc6 {[%emt 0:03:29]} 11. c4 {[%emt 0:05:56]} Ne5 {[%emt 0:07:52]} 12. Bf4 {[%emt 0:04:07]} d6 {[%emt 0:01:12]} 13. Rc1 {[%emt 0:01:09]} Ng6 {[%emt 0:03:07]} 14. Bd2 {[%emt 0:01:29]} Rb8 {[%emt 0:11:07]} 15. Bxb4 {[%emt 0:07:17]} Bxe4 {[%emt 0:00:25]} 16. Bxd6 {[%emt 0:03:42]} Bxd6 {[%emt 0:01:16]} 17. Bxe4 {[%emt 0:00:06]} Nxe4 {[%emt 0:00:17]} 18. Rxe4 {[%emt 0:00:02]} O-O {[%emt 0:01:26]} 19. c5 {[%emt 0:02:43]} Be7 {[%emt 1:01:46]} 20. b4 {[%emt 0:02:30]} Rfd8 {[%emt 0:00:00]} 21. Qe1 {[%emt 0:01:58]} e5 {[%emt 0:00:00]} 22. Nf5 {[%emt 0:01:17]} Bg5 {[%emt 0:00:00]} 23. Rc2 {[%emt 0:01:55]} Qc6 {[%emt 0:00:00]} 24. Nb2 {[%emt 0:03:59]} Qe6 {[%emt 0:00:00]} 25. Nd6 {[%emt 0:02:14]} Be7 {[%emt 0:00:00]} 26. Nbc4 {[%emt 0:02:25]} f5 {[%emt 0:00:00]} 27. Ree2 {[%emt 0:01:51]} e4 {[%emt 0:00:00]} 28. f4 {[%emt 0:01:10]} Bxd6 {[%emt 0:00:00]} 29. Nxd6 {[%emt 0:00:14]} Ne7 {[%emt 0:00:00]} 30. a3 {[%emt 0:01:14]} h5 {[%emt 0:00:00]} 31. Rc1 {[%emt 0:04:44]} Qg6 {[%emt 0:00:00]} 32. Qc3 {[%emt 0:02:01]} h4 {[%emt 0:00:00]} 33. Qe5 {[%emt 0:02:01]} Qg4 {[%emt 0:00:00]} 34. Qe6+ {[%emt 0:02:24]} Kh7 {[%emt 0:00:00]} 35. Nxe4 {[%emt 0:01:03]} hxg3 {[%emt 0:00:00]} 36. hxg3 {[%emt 0:00:25]} Ng6 {[%emt 0:00:00]} 37. Rh2+ {[%emt 0:00:15]} 1-0

[Event "XVI Memorial Lezcano Montalvo 2024"]
[Site "Gran Canaria"]
[Date "2024.03.24"]
[Round "2.21"]
[White "de Leon Navarro, Claudio"]
[Black "Damia, Angelo"]
[Result "0-1"]
[ECO "B07"]
[WhiteElo "1931"]
[BlackElo "2240"]
[Annotator "RC"]
[PlyCount "76"]
[EventDate "2024.03.23"]
[EventType "swiss"]
[EventCountry "ESP"]
[SourceTitle "playchess.com"]
[Source "ChessBase"]
[SourceQuality "1"]
[TimeControl "5400+30"]

1. d4 {[%emt 0:00:09]} Nf6 {[%emt 0:00:05]} 2. Bf4 {[%emt 0:00:19]} d6 {[%emt 0:00:48]} 3. Nc3 {[%emt 0:00:42]} c6 {[%emt 0:00:28]} 4. e4 {[%emt 0:00:29]} Qa5 {[%emt 0:00:04]} 5. Qd2 {[%emt 0:01:53]} e5 {[%emt 0:00:01]} 6. Be3 {[%emt 0:03:31]} Ng4 {[%emt 0:08:41]} 7. Nf3 {[%emt 0:05:00]} Nxe3 {[%emt 0:02:18]} 8. Qxe3 {[%emt 0:00:11]} Be7 {[%emt 0:02:51]} 9. Bc4 {[%emt 0:05:06]} Bg4 {[%emt 0:04:18]} 10. O-O {[%emt 0:05:08]} Nd7 {[%emt 0:03:44]} 11. a3 {[%emt 0:04:04]} O-O {[%emt 0:04:39]} 12. Rad1 {[%emt 0:10:49]} Rad8 {[%emt 0:20:46]} 13. Ne2 {[%emt 0:07:31]} b5 {[%emt 0:01:49]} 14. Bb3 {[%emt 0:03:01]} Qb6 {[%emt 0:09:14]} 15. c3 {[%emt 0:08:52]} exd4 {[%emt 0:08:58]} 16. cxd4 {[%emt 0:04:23]} c5 {[%emt 0:00:19]} 17. h3 {[%emt 0:02:00]} Bxf3 {[%emt 0:01:15]} 18. Qxf3 {[%emt 0:02:22]} Bf6 {[%emt 0:00:33]} 19. Nf4 {[%emt 0:05:38]} Bxd4 {[%emt 0:00:03]} 20. Nd5 {[%emt 0:01:27]} Ne5 {[%emt 0:03:01]} 21. Qg3 {[%emt 0:02:53]} Qb7 {[%emt 0:00:25]} 22. Rxd4 {[%emt 0:01:02]} cxd4 {[%emt 0:00:04]} 23. f4 {[%emt 0:00:56]} Nc4 {[%emt 0:00:01]} 24. f5 {[%emt 0:01:29]} Kh8 {[%emt 0:10:45]} 25. f6 {[%emt 0:06:07]} Rg8 {[%emt 0:00:12]} 26. Qh4 {[%emt 0:05:47]} g5 {[%emt 0:00:01]} 27. Qh5 {[%emt 0:00:45]} Rg6 {[%emt 0:04:00]} 28. Ne7 {[%emt 0:05:43]} Qxe4 {[%emt 0:01:39]} 29. Nxg6+ {[%emt 0:01:43]} Qxg6 {[%emt 0:00:09]} 30. Qe2 {[%emt 0:05:15]} Ne3 {[%emt 0:00:50]} 31. Rf3 {[%emt 0:00:47]} a6 {[%emt 0:02:05]} 32. Qd2 {[%emt 0:00:49]} Qb1+ {[%emt 0:00:46]} 33. Kf2 {[%emt 0:00:26]} g4 {[%emt 0:09:09]} 34. Rxe3 {[%emt 0:00:36]} dxe3+ {[%emt 0:00:13]} 35. Qxe3 {[%emt 0:00:31]} Qxb2+ {[%emt 0:00:12]} 36. Kg3 {[%emt 0:00:17]} Qxf6 {[%emt 0:00:10]} 37. hxg4 {[%emt 0:00:26]} Qe5+ {[%emt 0:00:11]} 38. Kf3 {[%emt 0:00:45]} Rc8 {[%emt 0:00:46]} 0-1

[Event "XVI Memorial Lezcano Montalvo 2024"]
[Site "Gran Canaria"]
[Date "2024.03.24"]
[Round "2.22"]
[White "Calzetta Ruiz, Monica"]
[Black "Garbezza, Davide"]
[Result "1-0"]
[ECO "B10"]
[WhiteElo "2239"]
[BlackElo "1888"]
[Annotator "RC"]
[PlyCount "51"]
[EventDate "2024.03.23"]
[EventType "swiss"]
[EventCountry "ESP"]
[SourceTitle "playchess.com"]
[Source "ChessBase"]
[SourceQuality "1"]
[TimeControl "5400+30"]

1. e4 {[%emt 0:00:16]} c6 {[%emt 0:00:07]} 2. c4 {[%emt 0:00:12]} d5 {[%emt 0:00:10]} 3. exd5 {[%emt 0:00:07]} cxd5 {[%emt 0:00:04]} 4. cxd5 {[%emt 0:00:07]} Nf6 {[%emt 0:00:12]} 5. Nc3 {[%emt 0:00:06]} Nxd5 {[%emt 0:01:37]} 6. Nf3 {[%emt 0:00:12]} Nc6 {[%emt 0:10:34]} 7. Bb5 {[%emt 0:00:47]} e6 {[%emt 0:09:29]} 8. O-O {[%emt 0:05:54]} Be7 {[%emt 0:01:18]} 9. d4 {[%emt 0:00:35]} O-O {[%emt 0:00:56]} 10. Re1 {[%emt 0:04:13]} a6 {[%emt 0:07:35]} 11. Bxc6 {[%emt 0:00:12]} bxc6 {[%emt 0:00:02]} 12. Ne5 {[%emt 0:03:39]} Nxc3 {[%emt 0:10:05]} 13. bxc3 {[%emt 0:00:41]} Bb7 {[%emt 0:02:46]} 14. Rb1 {[%emt 0:03:46]} Qc7 {[%emt 0:07:54]} 15. Qb3 {[%emt 0:20:20]} Rab8 {[%emt 0:01:30]} 16. Qb6 {[%emt 0:00:33]} Qc8 {[%emt 0:15:08]} 17. Bf4 {[%emt 0:06:46]} Bd6 {[%emt 0:02:21]} 18. Ng6 {[%emt 0:02:39]} Ba8 {[%emt 0:09:13]} 19. Qxb8 {[%emt 0:19:34]} Qxb8 {[%emt 0:01:44]} 20. Rxb8 {[%emt 0:00:12]} Bxb8 {[%emt 0:02:54]} 21. Nxf8 {[%emt 0:00:08]} Bxf4 {[%emt 0:00:11]} 22. Nd7 {[%emt 0:00:25]} Bc7 {[%emt 0:04:09]} 23. Rb1 {[%emt 0:00:55]} f6 {[%emt 0:02:52]} 24. Nc5 {[%emt 0:03:23]} Kf7 {[%emt 0:01:54]} 25. Nxa6 {[%emt 0:00:29]} Bd6 {[%emt 0:00:12]} 26. c4 {[%emt 0:00:49]} 1-0

[Event "XVI Memorial Lezcano Montalvo 2024"]
[Site "Gran Canaria"]
[Date "2024.03.24"]
[Round "2.23"]
[White "Quiceno Ramirez, Edwin Alejandro"]
[Black "Estremera Panos, Sergio"]
[Result "1/2-1/2"]
[ECO "E20"]
[WhiteElo "1888"]
[BlackElo "2233"]
[Annotator "RC"]
[PlyCount "69"]
[EventDate "2024.03.23"]
[EventType "swiss"]
[EventCountry "ESP"]
[SourceTitle "playchess.com"]
[Source "ChessBase"]
[SourceQuality "1"]
[TimeControl "5400+30"]

1. d4 {[%emt 0:00:05]} Nf6 {[%emt 0:00:45]} 2. c4 {[%emt 0:00:07]} e6 {[%emt 0:00:39]} 3. Nc3 {[%emt 0:00:31]} Bb4 {[%emt 0:00:57]} 4. f3 {[%emt 0:00:07]} c5 {[%emt 0:03:31]} 5. d5 {[%emt 0:00:18]} d6 {[%emt 0:00:19]} 6. e4 {[%emt 0:00:35]} b5 {[%emt 0:00:19]} 7. a3 {[%emt 0:02:15]} Bxc3+ {[%emt 0:07:20]} 8. bxc3 {[%emt 0:00:01]} O-O {[%emt 0:01:04]} 9. Bd3 {[%emt 0:04:29]} bxc4 {[%emt 0:10:06]} 10. Bxc4 {[%emt 0:02:26]} Nxd5 {[%emt 0:01:38]} 11. Bxd5 {[%emt 0:03:39]} exd5 {[%emt 0:00:09]} 12. Qxd5 {[%emt 0:00:24]} Qb6 {[%emt 0:00:13]} 13. Bf4 {[%emt 0:13:50]} Be6 {[%emt 0:23:35]} 14. Qxd6 {[%emt 0:16:15]} Qb2 {[%emt 0:01:01]} 15. Rd1 {[%emt 0:20:46]} Qxg2 {[%emt 0:00:28]} 16. Be3 {[%emt 0:16:17]} Nd7 {[%emt 0:09:04]} 17. Qg3 {[%emt 0:00:50]} Qxg3+ {[%emt 0:07:42]} 18. hxg3 {[%emt 0:00:07]} Rab8 {[%emt 0:00:20]} 19. Ne2 {[%emt 0:00:23]} Rb2 {[%emt 0:07:16]} 20. Kf2 {[%emt 0:05:16]} f5 {[%emt 0:02:17]} 21. exf5 {[%emt 0:02:25]} Bxf5 {[%emt 0:00:31]} 22. Rd2 {[%emt 0:00:53]} Rxd2 {[%emt 0:04:22]} 23. Bxd2 {[%emt 0:00:02]} Ne5 {[%emt 0:00:10]} 24. Nf4 {[%emt 0:00:29]} Rb8 {[%emt 0:00:49]} 25. Re1 {[%emt 0:03:03]} Nc4 {[%emt 0:01:04]} 26. Bc1 {[%emt 0:00:17]} Rb1 {[%emt 0:11:08]} 27. Nd5 {[%emt 0:01:18]} Bd7 {[%emt 0:01:38]} 28. Bf4 {[%emt 0:02:31]} Rxe1 {[%emt 0:00:51]} 29. Kxe1 {[%emt 0:00:02]} Kf7 {[%emt 0:00:39]} 30. Ne3 {[%emt 0:01:08]} Nxa3 {[%emt 0:01:58]} 31. Bd6 {[%emt 0:00:18]} Nb5 {[%emt 0:00:12]} 32. Bxc5 {[%emt 0:00:06]} Nxc3 {[%emt 0:01:08]} 33. Bxa7 {[%emt 0:00:10]} Bc6 {[%emt 0:00:09]} 34. Kf2 {[%emt 0:00:19]} Nd5 {[%emt 0:04:08]} 35. Ke1 {[%emt 0:06:18]} 1/2-1/2

[Event "XVI Memorial Lezcano Montalvo 2024"]
[Site "Gran Canaria"]
[Date "2024.03.24"]
[Round "2.24"]
[White "Hernandez Leon, Alberto"]
[Black "Peters, Alexander John"]
[Result "1-0"]
[ECO "B07"]
[WhiteElo "2207"]
[BlackElo "1993"]
[Annotator "RC"]
[PlyCount "65"]
[EventDate "2024.03.23"]
[EventType "swiss"]
[EventCountry "ESP"]
[SourceTitle "playchess.com"]
[Source "ChessBase"]
[SourceQuality "1"]
[TimeControl "5400+30"]

1. d4 {[%emt 0:00:03]} d6 {[%emt 0:00:19]} 2. e4 {[%emt 0:01:07]} Nf6 {[%emt 0:00:07]} 3. Nc3 {[%emt 0:00:05]} g6 {[%emt 0:00:09]} 4. f3 {[%emt 0:00:28]} Bg7 {[%emt 0:00:17]} 5. Be3 {[%emt 0:00:11]} c6 {[%emt 0:03:07]} 6. Qd2 {[%emt 0:00:56]} Nbd7 {[%emt 0:04:21]} 7. O-O-O {[%emt 0:01:01]} Qa5 {[%emt 0:11:28]} 8. Kb1 {[%emt 0:01:13]} b5 {[%emt 0:10:40]} 9. Bh6 {[%emt 0:04:14]} Bxh6 {[%emt 0:04:56]} 10. Qxh6 {[%emt 0:01:58]} b4 {[%emt 0:01:25]} 11. Nce2 {[%emt 0:00:54]} Nb6 {[%emt 0:02:44]} 12. Nc1 {[%emt 0:02:05]} Be6 {[%emt 0:12:49]} 13. g4 {[%emt 0:08:41]} Bc4 {[%emt 0:11:09]} 14. Nge2 {[%emt 0:04:25]} Rc8 {[%emt 0:12:00]} 15. Nf4 {[%emt 0:09:42]} Bxf1 {[%emt 0:02:49]} 16. Rhxf1 {[%emt 0:00:23]} Nfd7 {[%emt 0:09:18]} 17. Rfe1 {[%emt 0:04:28]} e5 {[%emt 0:01:00]} 18. dxe5 {[%emt 0:01:01]} dxe5 {[%emt 0:00:30]} 19. Nfd3 {[%emt 0:01:31]} Nc4 {[%emt 0:03:41]} 20. f4 {[%emt 0:02:51]} exf4 {[%emt 0:02:04]} 21. e5 {[%emt 0:03:45]} Ne3 {[%emt 0:01:38]} 22. Rd2 {[%emt 0:01:40]} Nc5 {[%emt 0:03:02]} 23. Nxc5 {[%emt 0:03:08]} Qxc5 {[%emt 0:00:10]} 24. e6 {[%emt 0:00:59]} Rf8 {[%emt 0:01:32]} 25. e7 {[%emt 0:20:43]} Rg8 {[%emt 0:00:32]} 26. Qxf4 {[%emt 0:00:11]} Nd5 {[%emt 0:00:13]} 27. Qe5 {[%emt 0:00:09]} Qa5 {[%emt 0:01:14]} 28. Nb3 {[%emt 0:05:04]} Qc7 {[%emt 0:00:09]} 29. Qd4 {[%emt 0:00:37]} Qf4 {[%emt 0:00:59]} 30. Re4 {[%emt 0:02:08]} Qf1+ {[%emt 0:00:35]} 31. Rd1 {[%emt 0:02:05]} Qa6 {[%emt 0:00:10]} 32. Qc5 {[%emt 0:01:09]} Qb6 {[%emt 0:00:29]} 33. Rxd5 {[%emt 0:18:05]} 1-0